bitfinex/quotes_SOLUSD_20250917
["timestamp","ask_amount","ask_price","bid_price","bid_amount"]
[1758134712219,12.01133731,233.32,233.22,2.33741692]
[1758134712418,12.01133731,233.27,233.22,14.98456844]
[1758134712639,12.01133731,233.3,233.22,14.98456844]
[1758134712837,12.01133731,233.32,233.22,14.98456844]
[1758134713037,12.01133731,233.36,233.22,14.98456844]
[1758134713223,20.52,233.51,233.22,14.98456844]
[1758134713224,12.01133731,233.34,233.33,8.93020699]
[1758134714045,12.01133731,233.31,233.22,14.98456844]
[1758134714250,12.01133731,233.26,233.22,12.74715152]
[1758134714427,12.01133731,233.26,233.22,17.03476479]
[1758134714625,12.01133731,233.26,233.22,12.74715152]
[1758134714839,12.01133731,233.26,233.25,8.93020699]
[1758134715230,12.01133731,233.26,233.22,12.74715152]
[1758134715433,12.01133731,233.26,233.22,17.03490654]
[1758134715747,12.01133731,233.15,233.01,15.02081455]
[1758134715956,12.01133731,233.11,233.06,8.77458016]
[1758134716322,2.229,233.1,233.01,27.79530868]
[1758134716523,2.229,233.1,233.02,0.42914771]
[1758134716735,2.229,233.1,233.02,2.23991026]
[1758134716938,14.24033731,233.1,233.08,8.77458016]
[1758134717153,14.24033731,233.1,233.02,2.23991026]
[1758134717154,2.229,233.1,233.02,2.23991026]
[1758134717324,12.01133731,233.07,233.04,8.77458016]
[1758134717525,12.01133731,233.05,233.0,8.77458016]
[1758134717750,12.01133731,233.05,232.82,7.98866269]
[1758134717751,12.01133731,233.03,232.88,18.04]
[1758134717927,12.01133731,233.03,232.92,2.24085848]
[1758134718128,12.01133731,233.03,233.0,8.77458016]
[1758134718330,12.01133731,233.07,233.02,8.77458016]
[1758134718536,12.01133731,233.06,232.93,12.80889976]
[1758134718754,2.229,233.1,233.03,8.77458016]
[1758134718755,12.01133731,233.07,233.03,8.77458016]
[1758134718950,12.01133731,233.07,232.92,2.24066578]
[1758134718951,12.01133731,233.08,233.06,8.77458016]
[1758134719158,2.229,233.1,232.96,8.77458016]
[1758134719325,2.229,233.1,232.97,36.91462418]
[1758134719722,12.01133731,233.23,232.97,36.91462418]
[1758134720035,12.01133731,233.16,232.97,36.91462418]
[1758134720252,12.01133731,233.12,232.97,15.02339356]
[1758134720427,12.01133731,233.07,233.02,8.77458016]
[1758134720852,12.01133731,233.07,232.97,4.29239816]
[1758134721036,12.01133731,233.07,233.03,8.77458016]
[1758134721377,12.01133731,233.13,233.06,8.77458016]
[1758134721531,2.23095451,233.23,233.12,8.77458016]
[1758134721532,12.01133731,233.21,233.12,8.77458016]
[1758134721732,2.23095451,233.23,232.98,8.41788408]
[1758134721952,12.01133731,233.33,233.22,8.77458016]
[1758134722158,12.01133731,233.33,233.27,8.77458016]
[1758134722159,12.01133731,233.31,233.27,8.77458016]
[1758134722360,12.01133731,233.28,233.13,0.42894522]
[1758134722657,12.01133731,233.25,233.13,0.42894522]
[1758134722840,12.01133731,233.25,233.22,8.77458016]
[1758134723037,12.01133731,233.25,233.12,41.74]
[1758134723236,12.01133731,233.29,233.24,13.06200941]
[1758134723462,12.01133731,233.27,233.24,4.28742925]
[1758134723645,14.24143604,233.33,233.26,8.77458016]
[1758134723956,12.01133731,233.27,233.24,8.77458016]
[1758134724162,12.01133731,233.25,233.07,41.7]
[1758134724338,12.01133731,233.23,233.17,8.77458016]
[1758134724665,20.78591747,233.26,233.18,8.77458016]
[1758134724959,8.77458016,233.25,233.07,41.7]
[1758134725147,12.01133731,233.23,233.07,41.7]
[1758134725334,12.01133731,233.23,233.2,8.77458016]
[1758134725532,12.01133731,233.23,233.07,56.71688832]
[1758134725730,12.01133731,233.23,233.18,5.77004493]
[1758134725933,12.01133731,233.23,233.1,5.77004493]
[1758134725934,17.78138224,233.2,233.07,4.29049711]
[1758134726161,12.01133731,233.18,233.07,4.29049711]
[1758134726333,12.01133731,233.18,233.05,4.29082318]
[1758134726534,12.01133731,233.18,233.16,5.77004493]
[1758134726729,12.01133731,233.21,233.17,5.77004493]
[1758134726930,12.01133731,233.21,233.19,5.77004493]
[1758134727250,16.29791649,233.29,233.2,5.77004493]
[1758134727449,12.01133731,233.3,233.11,15.44330506]
[1758134727961,12.01133731,233.26,233.24,5.77004493]
[1758134728171,12.01133731,233.26,233.11,0.42898202]
[1758134728337,12.01133731,233.26,232.91,12.79]
[1758134728338,12.01133731,233.27,233.1,5.77004493]
[1758134728659,17.78138224,233.26,233.04,41.54]
[1758134728834,12.01133731,233.22,233.1,5.77004493]
[1758134729037,12.01133731,233.18,233.01,10.72915325]
[1758134729261,12.01133731,233.18,233.13,20.78312775]
[1758134729441,11.29133731,233.22,233.17,5.77004493]
[1758134729638,11.29133731,233.22,233.13,15.01308282]
[1758134729843,11.29133731,233.24,233.13,15.01308282]
[1758134730164,2.23009873,233.33,233.1,5.77004493]
[1758134730165,20.0,233.22,233.1,5.77004493]
[1758134730541,0.03,233.22,233.21,5.77004493]
[1758134731240,0.03,233.22,233.11,4.28982025]
[1758134731453,0.03,233.22,233.21,5.77004493]
[1758134732356,0.03,233.22,233.12,0.42896362]
[1758134732577,0.03,233.22,233.21,5.77004493]
[1758134732765,0.03,233.22,233.18,5.77004493]
[1758134732955,0.03,233.22,233.21,5.77004493]
[1758134733156,2.2296794,233.37,233.21,11.54008986]
[1758134733343,26.51478337,233.37,233.3,5.77004493]
[1758134733547,20.0,233.31,233.24,16.48856075]
[1758134733745,20.0,233.31,233.24,10.71851582]
[1758134733948,20.0,233.47,233.25,0.42872454]
[1758134734258,20.0,233.45,233.25,42.08872454]
[1758134734648,20.0,233.45,233.36,5.77004493]
[1758134734843,20.0,233.45,233.37,0.42850409]
[1758134735047,20.0,233.38,233.24,23.31691708]
[1758134735247,20.0,233.38,233.24,49.04149261]
[1758134735248,5.77004493,233.37,233.24,49.04149261]
[1758134735547,20.0,233.35,233.24,49.04149261]
[1758134735747,0.42903724,233.49,233.24,49.04149261]
[1758134735748,20.0,233.34,233.24,16.88567087]
[1758134736054,20.0,233.33,233.24,15.00584275]
[1758134736265,20.0,233.35,233.25,8.75953601]
[1758134736461,20.0,233.53,233.24,15.00584275]
[1758134736462,20.0,233.33,233.24,15.00584275]
[1758134736771,20.0,233.4,233.26,8.75953601]
[1758134736949,20.0,233.33,233.27,8.75953601]
[1758134737147,20.0,233.37,233.27,8.75953601]
[1758134737355,42.68995296,234.25,233.33,8.75953601]
[1758134737356,20.0,233.42,233.33,8.75953601]
[1758134737657,20.0,233.49,233.37,8.75953601]
[1758134737851,28.75953601,233.49,233.37,8.75953601]
[1758134738046,20.0,233.41,233.34,0.42855918]
[1758134738368,20.0,233.41,233.24,49.35675218]
[1758134738369,8.75953601,233.48,233.25,0.42872454]
[1758134738668,20.0,233.41,233.25,0.42872454]
[1758134738965,20.0,233.34,233.24,49.35675218]
[1758134739170,28.75953601,233.34,233.25,8.75953601]
[1758134739373,20.0,233.34,233.24,27.9196059]
[1758134739858,21.41430476,233.49,233.18,47.41293484]
[1758134739859,8.75953601,233.31,233.22,4.28773299]
[1758134740074,4.71434125,233.36,233.22,13.047269]
[1758134740265,8.75953601,233.32,233.22,13.047269]
[1758134740464,8.75953601,233.25,233.14,4.28926825]
[1758134740774,8.75953601,233.21,233.12,8.75953601]
[1758134740958,0.42903724,233.2,233.0,4.29184549]
[1758134741150,39.26903724,233.25,233.1,8.75953601]
[1758134741350,8.75953601,233.13,233.0,15.02145922]
[1758134741548,8.75953601,233.1,233.0,15.02145922]
[1758134741753,41.56,233.2,233.03,8.75953601]
[1758134742053,15.00600239,233.24,233.01,0.42916613]
[1758134742054,0.42903724,233.19,233.01,0.42916613]
[1758134742270,8.75953601,233.2,233.11,8.75953601]
[1758134742565,8.75953601,233.18,233.09,8.75953601]
[1758134742763,8.75953601,233.14,233.0,36.48068668]
[1758134742947,8.75953601,233.14,233.04,8.75953601]
[1758134743142,41.48,233.21,233.06,8.75953601]
[1758134743366,41.48,233.21,233.0,15.02145922]
[1758134743367,8.75953601,233.11,233.0,15.02145922]
[1758134743677,4.28834855,233.19,233.03,8.75953601]
[1758134743849,0.42903724,233.18,233.05,8.75953601]
[1758134744048,8.75953601,233.15,233.06,8.75953601]
[1758134744351,0.42903724,233.18,233.0,15.02145922]
[1758134744352,8.75953601,233.17,233.08,8.75953601]
[1758134744555,8.75953601,233.17,233.0,15.02145922]
[1758134744556,8.75953601,233.2,233.1,8.75953601]
[1758134744848,8.75953601,233.2,233.12,8.75953601]
[1758134745061,8.75953601,233.22,233.12,8.75953601]
[1758134745254,8.75953601,233.2,233.12,8.75953601]
[1758134745574,8.75953601,233.18,233.1,8.75953601]
[1758134745756,8.75953601,233.16,233.02,36.47755556]
[1758134745954,8.75953601,233.14,233.04,8.75953601]
[1758134746150,8.75953601,233.14,233.02,36.47755556]
[1758134746363,8.75953601,233.12,233.04,8.75953601]
[1758134746671,0.42903724,233.24,233.02,36.47755556]
[1758134746672,8.75953601,233.16,233.02,36.47755556]
[1758134746866,8.75953601,233.14,233.02,36.47755556]
[1758134747069,8.75953601,233.14,233.06,8.75953601]
[1758134747266,0.42903724,233.21,232.98,12.79326915]
[1758134747483,8.75953601,233.09,232.98,4.29212943]
[1758134747652,0.42903724,233.08,232.98,4.29212943]
[1758134747844,8.75953601,233.09,232.99,8.75953601]
[1758134748050,0.42903724,233.08,232.99,8.75953601]
[1758134748360,9.18857325,233.08,232.99,8.75953601]
[1758134748674,8.75953601,233.1,233.01,8.75953601]
[1758134749057,0.42903724,233.14,232.99,0.06]
[1758134749378,0.42903724,233.15,232.99,0.06]
[1758134749572,0.42903724,233.15,233.06,8.75953601]
[1758134749763,0.42903724,233.2,233.07,8.75953601]
[1758134749959,0.42903724,233.2,232.99,0.06]
[1758134749960,8.75953601,233.18,233.09,8.75953601]
[1758134750179,0.42903724,233.17,232.99,0.06]
[1758134750382,0.42903724,233.17,233.06,8.75953601]
[1758134750554,0.03,233.22,233.14,8.75953601]
[1758134750758,4.74689216,233.22,233.09,8.75953601]
[1758134751064,8.75953601,233.11,232.99,0.06]
[1758134751268,8.75953601,233.07,232.99,0.06]
[1758134751476,0.42903724,233.06,233.0,4.29184549]
[1758134751776,4.28957563,233.13,233.0,4.29184549]
[1758134751951,0.42903724,233.12,233.03,8.75953601]
[1758134752153,8.75953601,233.11,233.04,8.75953601]
[1758134754952,8.75953601,233.13,233.05,8.75953601]
[1758134755151,8.75953601,233.15,233.09,8.75953601]
[1758134755367,0.42903724,233.19,233.1,8.75953601]
[1758134755570,0.42903724,233.21,233.16,8.75953601]
[1758134755781,0.03,233.22,233.16,5.77078692]
[1758134756091,5.77078692,233.18,232.99,0.06]
[1758134756258,0.42903724,233.17,233.0,0.42918454]
[1758134756462,5.77078692,233.18,233.1,5.77078692]
[1758134756784,0.03,233.22,232.99,0.06]
[1758134756785,5.77078692,233.11,233.02,5.77078692]
[1758134756949,5.77078692,233.09,233.01,5.77078692]
[1758134757269,0.42903724,233.21,233.08,5.77078692]
[1758134757471,0.42903724,233.21,233.13,5.77078692]
[1758134757677,5.80078692,233.22,233.15,5.77078692]
[1758134757850,0.42903724,233.21,233.15,5.77078692]
[1758134758252,0.42903724,233.21,233.06,4.2906734]
[1758134758449,0.42903724,233.21,233.06,15.01752485]
[1758134758678,0.03,233.22,233.16,5.77078692]
[1758134758882,0.45903724,233.22,233.16,5.77078692]
[1758134759466,0.45903724,233.22,233.1,5.77078692]
[1758134759664,0.45903724,233.22,233.07,15.01694769]
[1758134759665,0.45903724,233.22,233.07,36.46973011]
[1758134759989,5.77078692,233.2,233.12,5.77078692]
[1758134760284,5.77078692,233.2,233.07,36.46973011]
[1758134760285,0.42903724,233.19,233.02,4.29145663]
[1758134760463,5.77078692,233.11,233.02,4.29145663]
[1758134760663,5.77078692,233.09,233.02,4.29145663]
[1758134760986,13.24903724,233.22,233.08,5.77078692]
[1758134761280,0.42903724,233.21,233.18,5.77078692]
[1758134761456,0.03,233.22,233.2,5.77078692]
[1758134762073,0.03,233.22,233.18,15.00978962]
[1758134762074,0.03,233.22,233.21,11.54157384]
[1758134762291,0.42903724,233.38,233.21,11.54157384]
[1758134762501,0.42903724,233.38,233.18,15.43864286]
[1758134762502,14.98865144,233.51,233.24,5.77078692]
[1758134762661,0.42903724,233.5,233.37,5.77078692]
[1758134762870,5.77078692,233.47,233.2,20.0]
[1758134763179,0.42903724,233.46,233.24,0.42874292]
[1758134763385,5.77078692,233.39,233.25,15.00535905]
[1758134763557,0.42903724,233.51,233.38,5.77078692]
[1758134763758,0.42903724,233.5,233.26,0.42870616]
[1758134763971,5.77078692,233.43,233.25,15.00535905]
[1758134764167,5.77078692,233.37,233.25,15.00535905]
[1758134764362,50.00498229,233.55,233.31,5.77078692]
[1758134764363,11.08,233.46,233.31,5.77078692]
[1758134764564,0.42903724,233.45,233.26,0.42870616]
[1758134764765,5.77078692,233.41,233.25,36.44158627]
[1758134764970,5.77078692,233.37,233.25,36.44158627]
[1758134765170,0.42903724,233.51,233.29,5.77078692]
[1758134765379,5.77078692,233.38,233.32,4.28595919]
[1758134765571,5.77078692,233.34,233.2,4.28816466]
[1758134765768,5.77078692,233.31,233.23,5.77078692]
[1758134765970,0.42903724,233.37,233.23,5.77078692]
[1758134766163,0.42903724,233.37,233.2,15.00857632]
[1758134766391,0.42903724,233.37,233.29,5.77078692]
[1758134766392,6.19982416,233.37,233.29,5.77078692]
[1758134766894,6.19982416,233.37,233.2,36.8782161]
[1758134766895,5.77078692,233.31,233.2,36.44939964]
[1758134767102,0.42903724,233.37,233.2,36.44939964]
[1758134767398,4.28504092,233.37,233.2,5.77078692]
[1758134767604,5.77078692,233.3,233.22,5.77078692]
[1758134767807,0.42903724,233.35,233.28,5.77078692]
[1758134767970,26.58,233.42,233.19,4.28834855]
[1758134767971,0.42903724,233.41,233.29,5.77078692]
[1758134768291,5.77078692,233.37,233.29,5.77078692]
[1758134768600,26.58,233.42,233.2,5.77078692]
[1758134768601,0.42903724,233.36,233.2,5.77078692]
[1758134768788,5.77078692,233.3,233.19,15.00921994]
[1758134768985,0.42903724,233.35,233.24,5.77078692]
[1758134769191,5.77078692,233.37,233.28,5.77078692]
[1758134769499,5.77078692,233.29,233.15,15.01179498]
[1758134769676,5.77078692,233.29,233.21,5.77078692]
[1758134769876,5.77078692,233.26,233.15,15.01179498]
[1758134770205,0.42903724,233.34,233.17,5.77078692]
[1758134770405,0.42903724,233.34,233.22,5.77078692]
[1758134770611,5.77078692,233.23,233.16,5.77078692]
[1758134770909,0.42903724,233.22,233.12,5.77078692]
[1758134771108,0.42903724,233.35,233.14,5.77078692]
[1758134771297,20.62,233.34,233.21,5.77078692]
[1758134771495,5.77078692,233.32,233.24,4.28742925]
[1758134771695,0.42903724,233.31,233.22,10.05844232]
[1758134771888,5.77078692,233.29,233.22,15.00714772]
[1758134772085,0.42903724,233.33,233.25,5.77078692]
[1758134772402,0.42903724,233.33,233.22,15.00714772]
[1758134772403,5.77078692,233.31,233.22,4.2876554]
[1758134772591,5.77078692,233.24,233.06,25.17572257]
[1758134772787,0.42903724,233.3,233.18,5.77078692]
[1758134772990,5.77078692,233.28,233.2,5.77078692]
[1758134773177,0.42903724,233.36,233.24,5.77078692]
[1758134773382,5.77078692,233.32,233.11,15.01437089]
[1758134773683,0.42903724,233.36,233.25,5.77078692]
[1758134773907,0.42903724,233.36,233.29,5.77078692]
[1758134774102,0.42903724,233.44,233.24,5.77078692]
[1758134774306,5.77078692,233.43,233.35,5.77078692]
[1758134774605,5.77078692,233.37,233.11,77.91257345]
[1758134774810,5.77078692,233.35,233.27,5.77078692]
[1758134774987,5.77078692,233.35,233.28,5.77078692]
[1758134775183,6.19982416,233.34,233.26,5.77078692]
[1758134775419,0.42903724,233.45,233.26,5.77078692]
[1758134775606,0.42903724,233.45,233.23,5.77078692]
[1758134775607,5.77078692,233.3,233.23,5.77078692]
[1758134775904,0.42903724,233.37,233.28,5.77078692]
[1758134776115,5.77078692,233.42,233.33,5.77078692]
[1758134776289,0.42903724,233.41,233.32,5.77078692]
[1758134776488,5.77078692,233.36,233.13,0.42894522]
[1758134776686,5.77078692,233.34,233.12,4.28963623]
[1758134776884,5.77078692,233.36,233.28,5.77078692]
[1758134777084,41.12,233.42,233.3,5.77078692]
[1758134777310,5.77078692,233.34,233.12,4.28963623]
[1758134777512,5.77078692,233.33,233.27,4.28687786]
[1758134777898,4.28449014,233.4,233.23,19.24269411]
[1758134777899,0.42903724,233.32,233.23,19.24269411]
[1758134778204,14.9957155,233.4,233.23,19.24269411]
[1758134778205,0.42903724,233.39,233.24,15.00600239]
[1758134778590,8.5236661,233.29,233.12,8.5236661]
[1758134778793,8.95270334,233.28,233.07,10.72638579]
[1758134779099,21.74270334,233.28,233.09,8.5236661]
[1758134779307,8.5236661,233.22,233.14,8.5236661]
[1758134779492,0.42903724,233.28,233.05,4.29092469]
[1758134779493,4.28730346,233.25,233.15,8.5236661]
[1758134779694,8.95270334,233.24,233.15,8.5236661]
[1758134779891,8.5236661,233.22,233.15,8.5236661]
[1758134780205,0.42903724,233.24,233.17,8.5236661]
[1758134780407,8.5236661,233.25,233.17,8.5236661]
[1758134780597,41.08,233.3,233.17,8.5236661]
[1758134780598,0.42903724,233.28,233.17,8.5236661]
[1758134780798,8.5236661,233.25,233.17,8.5236661]
[1758134780991,8.5236661,233.21,233.13,8.5236661]
[1758134781317,8.5236661,233.15,233.05,4.29092469]
[1758134781616,8.5236661,233.12,233.03,4.29114783]
[1758134781818,8.5236661,233.06,232.99,4.35196831]
[1758134782110,8.5236661,233.0,232.99,0.06]
[1758134782515,0.42903724,233.11,232.99,0.06]
[1758134782694,8.5236661,233.02,232.99,0.06]
[1758134783091,8.5236661,233.04,232.99,0.06]
[1758134783405,8.5236661,233.04,232.99,4.35190066]
[1758134783599,8.5236661,233.04,232.99,0.06]
[1758134784103,8.5236661,233.05,232.99,0.06]
[1758134784300,0.42903724,233.04,232.99,0.06]
[1758134784630,8.5236661,233.01,232.99,0.06]
[1758134784792,0.42903724,233.0,232.99,0.06]
[1758134785515,8.5236661,233.0,232.99,0.06]
[1758134786022,8.95270334,233.0,232.99,0.06]
[1758134786321,8.5236661,233.0,232.99,0.06]
[1758134787011,0.42903724,233.08,232.99,0.06]
[1758134787209,40.78,233.07,232.99,0.06]
[1758134787416,0.42903724,233.06,232.99,0.06]
[1758134787719,8.5236661,233.08,233.01,4.2916613]
[1758134787892,8.5236661,233.02,232.99,0.06]
[1758134788095,8.5236661,233.04,232.99,4.35198249]
[1758134788314,0.42903724,233.11,232.99,4.35198249]
[1758134788511,0.42903724,233.11,233.01,8.5236661]
[1758134788808,8.5236661,233.08,232.99,23.60572284]
[1758134789114,0.42903724,233.07,232.99,0.06]
[1758134789292,8.5236661,233.04,232.99,0.06]
[1758134789491,0.42903724,233.03,232.99,0.06]
[1758134789716,0.42903724,233.05,232.99,0.06]
[1758134789907,0.42903724,233.05,233.02,8.5236661]
[1758134790096,0.42903724,233.09,233.02,8.5236661]
[1758134790514,0.42903724,233.09,232.99,0.06]
[1758134790699,8.5236661,233.04,232.99,0.06]
[1758134790906,0.42903724,233.03,232.99,0.06]
[1758134791212,8.5236661,233.02,232.99,0.06]
[1758134791521,0.42903724,233.01,232.99,0.06]
[1758134791815,0.42903724,233.03,232.99,0.06]
[1758134792110,8.5236661,233.07,232.99,8.5836661]
[1758134792314,8.5236661,233.05,232.99,0.06]
[1758134792495,8.5236661,233.01,232.99,0.06]
[1758134792689,0.42903724,233.0,232.99,0.06]
[1758134793503,8.5236661,233.01,232.99,0.06]
[1758134793714,0.42903724,233.04,232.99,0.06]
[1758134794105,8.5236661,233.0,232.99,0.06]
[1758134794302,0.42903724,233.04,232.99,0.06]
[1758134794800,8.5236661,233.02,232.99,0.06]
[1758134794993,0.42903724,233.01,232.94,10.45226501]
[1758134795221,0.42903724,233.01,232.95,8.5236661]
[1758134795610,0.42903724,233.01,232.93,8.5236661]
[1758134795611,8.95270334,233.01,232.93,8.5236661]
[1758134795813,8.95270334,233.01,232.94,3.79295097]
[1758134796202,0.42903724,233.01,232.93,8.5236661]
[1758134796512,8.5236661,233.01,232.93,8.5236661]
[1758134796718,0.42903724,233.0,232.93,8.5236661]
[1758134796901,0.42903724,233.0,232.84,15.03178147]
[1758134797093,0.42903724,233.03,232.93,8.5236661]
[1758134797699,8.5236661,232.99,232.94,4.29295097]
[1758134798015,0.42903724,232.98,232.93,8.5236661]
[1758134798223,0.42903724,233.04,232.95,8.5236661]
[1758134798397,0.42903724,233.04,232.99,8.5236661]
[1758134798715,8.5236661,233.04,232.96,8.5236661]
[1758134798910,8.5236661,233.02,232.94,8.5236661]
[1758134799104,0.42903724,233.01,232.95,8.5236661]
[1758134799510,8.5236661,233.02,232.95,8.5236661]
[1758134799719,0.42903724,233.06,232.99,8.5236661]
[1758134799900,25.2636661,233.07,232.99,8.5236661]
[1758134800103,0.42903724,233.06,233.01,8.5236661]
[1758134800315,8.5236661,233.02,232.91,8.5236661]
[1758134800525,20.0,233.16,232.86,15.03049041]
[1758134800822,0.42903724,233.15,233.01,8.5236661]
[1758134800994,0.42903724,233.15,232.86,17.27140951]
[1758134801200,13.21903724,233.15,232.86,17.27140951]
[1758134801499,8.5236661,233.12,232.86,17.27140951]
[1758134801700,8.5236661,233.0,232.92,8.5236661]
[1758134801902,15.01501501,233.1,232.93,4.29313527]
[1758134802103,8.5236661,233.02,232.93,4.29313527]
[1758134802303,0.42903724,233.01,232.93,4.29313527]
[1758134802516,8.5236661,233.01,232.93,15.02597346]
[1758134802821,0.42903724,233.09,232.93,15.02597346]
[1758134802822,8.5236661,233.07,232.98,8.5236661]
[1758134802997,8.5236661,233.07,232.93,15.02597346]
[1758134802998,8.5236661,233.03,232.95,8.5236661]
[1758134803198,8.5236661,233.03,232.93,15.02597346]
[1758134803199,8.5236661,233.03,232.93,4.29313527]
[1758134803422,8.5236661,233.03,232.87,4.29424142]
[1758134803594,8.5236661,233.03,232.95,8.5236661]
[1758134803805,0.42903724,233.1,232.97,8.5236661]
[1758134804102,8.5236661,233.06,232.98,8.5236661]
[1758134804315,0.42903724,233.05,232.87,15.02984497]
[1758134804502,0.42903724,233.05,232.98,8.5236661]
[1758134804810,4.29024744,233.09,232.98,8.5236661]
[1758134804811,8.5236661,233.07,232.98,8.5236661]
[1758134805014,40.82,233.11,232.87,15.02984497]
[1758134805015,8.5236661,233.04,232.87,4.29424142]
[1758134805197,8.5236661,233.02,232.94,8.5236661]
[1758134805399,8.5236661,233.0,232.91,8.5236661]
[1758134805626,15.00921994,233.19,232.87,15.02984497]
[1758134805807,15.00921994,233.19,233.04,8.5236661]
[1758134805808,40.76,233.16,233.04,8.5236661]
[1758134806130,8.5236661,233.06,232.89,15.02855424]
[1758134806319,8.5236661,233.06,232.97,8.5236661]
[1758134806509,8.5236661,233.06,232.96,8.5236661]
[1758134806918,8.5236661,233.06,232.98,8.5236661]
[1758134807227,15.01179498,233.15,233.04,8.5236661]
[1758134807408,8.5236661,233.13,233.04,8.5236661]
[1758134807813,10.72148334,233.18,233.06,8.5236661]
[1758134808010,8.5236661,233.15,233.08,8.5236661]
[1758134808325,45.24837945,233.19,233.09,4.29018833]
[1758134808506,45.24837945,233.19,233.01,21.45742091]
[1758134808507,8.5236661,233.17,233.02,4.29147712]
[1758134808707,8.5236661,233.17,233.08,8.5236661]
[1758134808906,40.96,233.19,233.1,8.5236661]
[1758134809105,49.4836661,233.19,233.1,8.5236661]
[1758134809348,0.03,233.33,233.1,13.08377862]
[1758134809629,0.03,233.33,233.24,8.5236661]
[1758134809807,0.2,233.57,233.13,0.42894522]
[1758134809808,4.28192172,233.54,233.13,0.42894522]
[1758134810005,41.58192172,233.54,233.28,8.5236661]
[1758134810327,4.28210508,233.53,233.39,8.5236661]
[1758134810533,8.5236661,233.49,233.39,8.5236661]
[1758134810832,8.5236661,233.49,233.3,0.42863266]
[1758134811039,14.98736778,233.53,233.4,8.5236661]
[1758134811231,42.28,233.54,233.4,8.5236661]
[1758134811409,42.28,233.54,233.3,0.42863266]
[1758134811613,42.28,233.54,233.29,15.00278622]
[1758134811614,46.56204836,233.54,233.29,4.28651035]
[1758134811813,46.56204836,233.54,233.28,25.96206995]
[1758134811814,8.5236661,233.4,233.28,25.96206995]
[1758134812019,57.26685267,233.54,233.18,15.00986362]
[1758134812227,57.26685267,233.54,233.34,8.5236661]
[1758134812228,8.5236661,233.43,233.34,8.5236661]
[1758134812431,8.5236661,233.41,233.19,0.42883485]
[1758134812713,8.5236661,233.4,233.32,8.5236661]
[1758134812914,78.6764613,233.54,233.18,62.63830388]
[1758134813132,8.5236661,233.34,233.18,62.63830388]
[1758134813312,16.42,233.42,233.29,8.5236661]
[1758134813629,42.22,233.52,233.18,62.63830388]
[1758134813808,8.5236661,233.34,233.18,62.63830388]
[1758134814009,8.5236661,233.34,233.26,8.5236661]
[1758134814231,8.5236661,233.34,233.18,30.4743104]
[1758134814232,8.5236661,233.34,233.19,4.28834855]
[1758134814430,4.28500634,233.38,233.19,15.00921994]
[1758134814633,8.5236661,233.37,233.19,4.28834855]
[1758134814826,24.66643784,233.61,233.36,8.5236661]
[1758134815157,8.5236661,233.51,233.29,0.42865103]
[1758134815313,6.51063584,233.55,233.42,8.5236661]
[1758134815513,8.5236661,233.51,233.29,0.42865103]
[1758134815713,17.2149818,233.55,233.41,8.5236661]
[1758134815919,8.5236661,233.48,233.4,8.5236661]
[1758134816233,12.80638701,233.5,233.29,0.42865103]
[1758134816425,8.5236661,233.46,233.38,8.5236661]
[1758134816630,8.5236661,233.44,233.36,8.5236661]
[1758134816936,8.5236661,233.39,233.31,8.5236661]
[1758134817135,8.5236661,233.41,233.3,27.86240504]
[1758134817347,8.5236661,233.44,233.35,8.5236661]
[1758134817715,8.5236661,233.44,233.3,15.00214315]
[1758134817914,8.5236661,233.42,233.34,8.5236661]
[1758134818146,8.5236661,233.4,233.33,8.5236661]
[1758134818439,8.5236661,233.34,233.24,26.06948241]
[1758134818639,8.5236661,233.31,233.24,26.06948241]
[1758134819221,14.99507304,233.41,233.26,8.5236661]
[1758134819532,8.5236661,233.33,233.24,8.5236661]
[1758134819844,8.5236661,233.33,233.25,4.28724544]
[1758134820143,10.71076646,233.41,233.25,4.28724544]
[1758134820316,10.71076646,233.41,233.12,12.62424811]
[1758134820317,8.5236661,233.26,233.12,12.62424811]
[1758134820516,8.5236661,233.2,233.1,5.9777343]
[1758134820722,8.5236661,233.18,233.1,8.5236661]
[1758134820944,8.5236661,233.18,233.0,36.48068668]
[1758134821117,8.5236661,233.16,233.08,8.5236661]
[1758134821437,8.5236661,233.28,233.0,4.29184549]
[1758134821438,8.5236661,233.13,233.0,4.29184549]
[1758134821741,42.22,233.18,233.0,17.0823478]
[1758134821941,8.5236661,233.08,233.0,4.29184549]
[1758134822126,8.5236661,233.08,232.98,8.5236661]
[1758134822677,20.0,233.3,233.06,8.5236661]
[1758134822834,20.0,233.3,233.02,8.5236661]
[1758134822835,8.5236661,233.28,233.02,8.5236661]
[1758134823019,8.5236661,233.11,232.99,27.81513166]
[1758134823215,8.1,233.16,233.03,8.5236661]
[1758134823447,8.5236661,233.13,232.99,27.81513166]
[1758134823642,8.1,233.16,232.99,27.81513166]
[1758134823643,8.5236661,233.11,232.99,27.81513166]
[1758134823843,8.5236661,233.11,233.03,4.29129296]